[Event "Asian Amateur-ch Women 2022"]
[Site "Muscat"]
[Date "2022.10.02"]
[Round "3.5"]
[White "Wijesuriya, G P Y"]
[Black "Anoud Eisa Bashkardi"]
[Result "1-0"]
[ECO "C67"]
[WhiteElo "1564"]
[BlackElo "1277"]
[Annotator "NA RC COMBH"]
[PlyCount "73"]
[EventDate "2022.09.29"]
[EventType "swiss"]
[SourceTitle "playchess.com"]
[Source "ChessBase"]
[SourceQuality "1"]
[TimeControl "5400+30"]

1. e4 {[%emt 0:00:17]} e5 {[%emt 0:00:05]} 2. Nf3 {[%emt 0:00:08]} Nc6 {[%emt 0:00:04]} 3. Bb5 {[%emt 0:00:06]} Nf6 {[%emt 0:00:11]} 4. O-O {[%emt 0:00:12]} Nxe4 {[%emt 0:00:17]} 5. d4 {[%emt 0:03:37]} exd4 {[%emt 0:04:32]} 6. Re1 {[%emt 0:00:10]} d5 {[%emt 0:13:37]} 7. Nxd4 {[%emt 0:00:23]} Bd7 {[%emt 0:05:57]} 8. f3 {[%emt 0:00:49]} Bc5 {[%emt 0:01:27]} 9. c3 {[%emt 0:00:29]} O-O {[%emt 0:01:38]} 10. Bxc6 {[%emt 0:00:32]} bxc6 {[%emt 0:05:03]} 11. fxe4 {[%emt 0:00:10]} dxe4 {[%emt 1:03:09]} 12. Rxe4 {[%emt 0:01:09]} Be6 {[%emt 0:00:00]} 13. Qh5 {[%emt 0:02:51]} Be7 {[%emt 0:00:00]} 14. Nxe6 {[%emt 0:00:23]} fxe6 {[%emt 0:00:00]} 15. Qe2 {[%emt 0:03:44]} Qd5 {[%emt 0:00:00]} 16. b4 {[%emt 0:06:29]} Rad8 {[%emt 0:00:00]} 17. Bd2 {[%emt 0:04:02]} a5 {[%emt 0:00:00]} 18. Rd4 {[%emt 0:01:19]} Qf5 {[%emt 0:00:00]} 19. Rxd8 {[%emt 0:02:37]} Rxd8 {[%emt 0:00:00]} 20. Na3 {[%emt 0:00:12]} axb4 {[%emt 0:00:00]} 21. cxb4 {[%emt 0:00:42]} Bf6 {[%emt 0:00:00]} 22. Re1 {[%emt 0:01:40]} e5 {[%emt 0:00:00]} 23. Nc4 {[%emt 0:00:28]} Qd3 {[%emt 0:00:00]} 24. Qxd3 {[%emt 0:01:44]} Rxd3 {[%emt 0:00:00]} 25. Re4 {[%emt 0:00:09]} Kf7 {[%emt 0:00:00]} 26. Kf2 {[%emt 0:00:22]} Ke6 {[%emt 0:00:00]} 27. Ke2 {[%emt 0:00:18]} Rd4 {[%emt 0:00:00]} 28. Rxd4 {[%emt 0:01:09]} exd4 {[%emt 0:00:00]} 29. Kd3 {[%emt 0:00:10]} c5 {[%emt 0:00:00]} 30. b5 {[%emt 0:00:10]} Kd5 {[%emt 0:00:00]} 31. a4 {[%emt 0:00:07]} Ke6 {[%emt 0:00:00]} 32. a5 {[%emt 0:00:31]} Kd7 {[%emt 0:00:00]} 33. a6 {[%emt 0:00:16]} Kc8 {[%emt 0:00:00]} 34. Na5 {[%emt 0:00:22]} Kb8 {[%emt 0:00:00]} 35. Nc6+ {[%emt 0:00:11]} Ka8 {[%emt 0:00:00]} 36. Bf4 {[%emt 0:00:06]} g5 {[%emt 0:00:00]} 37. Bxc7 {[%emt 0:00:09]} 1-0

[Event "Asian Amateur-ch Women 2022"]
[Site "Muscat"]
[Date "2022.10.02"]
[Round "3.6"]
[White "Amulya Guruprasad"]
[Black "Al Kalbani, Wadima"]
[Result "1-0"]
[ECO "A47"]
[WhiteElo "1278"]
[BlackElo "1554"]
[Annotator "NA RC COMBH"]
[PlyCount "113"]
[EventDate "2022.09.29"]
[EventType "swiss"]
[SourceTitle "playchess.com"]
[Source "ChessBase"]
[SourceQuality "1"]
[TimeControl "5400+30"]

1. d4 {[%emt 0:00:02]} Nf6 {[%emt 0:00:07]} 2. Nf3 {[%emt 0:00:06]} e6 {[%emt 0:00:09]} 3. Bf4 {[%emt 0:00:08]} b6 {[%emt 0:00:08]} 4. e3 {[%emt 0:00:57]} Bb7 {[%emt 0:00:04]} 5. Nbd2 {[%emt 0:00:12]} d6 {[%emt 0:02:04]} 6. h3 {[%emt 0:01:46]} Nbd7 {[%emt 0:00:08]} 7. Bd3 {[%emt 0:04:19]} Qe7 {[%emt 0:02:14]} 8. Nc4 {[%emt 0:00:58]} g6 {[%emt 0:00:59]} 9. c3 {[%emt 0:03:14]} b5 {[%emt 0:19:56]} 10. Na5 {[%emt 0:00:14]} e5 {[%emt 1:09:41]} 11. Bg5 {[%emt 0:15:36]} Bxf3 {[%emt 0:00:00]} 12. gxf3 {[%emt 0:00:09]} a6 {[%emt 0:00:00]} 13. d5 {[%emt 0:00:11]} Qd8 {[%emt 0:00:00]} 14. Nc6 {[%emt 0:00:10]} Qc8 {[%emt 0:00:00]} 15. e4 {[%emt 0:00:08]} Bg7 {[%emt 0:00:00]} 16. Qd2 {[%emt 0:01:27]} h6 {[%emt 0:00:00]} 17. Be3 {[%emt 0:00:52]} Ng8 {[%emt 0:00:00]} 18. O-O-O {[%emt 0:12:51]} Ne7 {[%emt 0:00:00]} 19. Nxe7 {[%emt 0:01:01]} Kxe7 {[%emt 0:00:00]} 20. h4 {[%emt 0:00:06]} h5 {[%emt 0:00:00]} 21. f4 {[%emt 0:02:15]} exf4 {[%emt 0:00:00]} 22. Bxf4 {[%emt 0:00:07]} Nc5 {[%emt 0:00:00]} 23. Bc2 {[%emt 0:00:13]} Qg4 {[%emt 0:00:00]} 24. Qe3 {[%emt 0:00:16]} Qxf4 {[%emt 0:00:00]} 25. Qxf4 {[%emt 0:00:13]} Bh6 {[%emt 0:00:00]} 26. Qxh6 {[%emt 0:00:05]} Rxh6 {[%emt 0:00:00]} 27. f4 {[%emt 0:00:19]} f6 {[%emt 0:00:00]} 28. Rde1 {[%emt 0:02:51]} Nd7 {[%emt 0:00:00]} 29. Kd2 {[%emt 0:00:52]} Re8 {[%emt 0:00:00]} 30. Ke3 {[%emt 0:00:20]} Kf7 {[%emt 0:00:00]} 31. Kd4 {[%emt 0:00:08]} Rhh8 {[%emt 0:00:00]} 32. Rhf1 {[%emt 0:01:01]} Re7 {[%emt 0:00:00]} 33. b4 {[%emt 0:04:53]} Rhe8 {[%emt 0:00:00]} 34. a4 {[%emt 0:04:52]} f5 {[%emt 0:00:00]} 35. axb5 {[%emt 0:00:31]} axb5 {[%emt 0:00:00]} 36. Bd3 {[%emt 0:00:06]} Nf6 {[%emt 0:00:00]} 37. e5 {[%emt 0:01:06]} dxe5+ {[%emt 0:00:00]} 38. fxe5 {[%emt 0:00:09]} Nxd5 {[%emt 0:00:00]} 39. Bxb5 {[%emt 0:00:09]} Rd8 {[%emt 0:00:00]} 40. Bc4 {[%emt 0:00:05]} c6 {[%emt 0:00:00]} 41. Kc5 {[%emt 0:00:13]} Rc7 {[%emt 0:00:00]} 42. Rf3 {[%emt 0:05:19]} Ke7 {[%emt 0:00:00]} 43. Rg3 {[%emt 0:01:39]} Rg8 {[%emt 0:00:00]} 44. Reg1 {[%emt 0:03:51]} Kf7 {[%emt 0:00:00]} 45. Kd6 {[%emt 0:01:24]} Rd8+ {[%emt 0:00:00]} 46. Kc5 {[%emt 0:00:04]} Rg8 {[%emt 0:00:19]} 47. Bb3 {[%emt 0:02:02]} f4 {[%emt 0:04:48]} 48. Rf3 {[%emt 0:00:57]} Ke6 {[%emt 0:00:24]} 49. Kd4 {[%emt 0:00:19]} Ke7 {[%emt 0:02:59]} 50. Bc2 {[%emt 0:03:02]} Kf7 {[%emt 0:04:55]} 51. c4 {[%emt 0:00:22]} Nxb4 {[%emt 0:00:29]} 52. Rxf4+ {[%emt 0:00:06]} Ke7 {[%emt 0:02:51]} 53. Bxg6 {[%emt 0:00:53]} c5+ {[%emt 0:01:45]} 54. Ke4 {[%emt 0:02:40]} Rc6 {[%emt 0:01:27]} 55. Rf7+ {[%emt 0:05:25]} Ke6 {[%emt 0:00:02]} 56. Rf5 {[%emt 0:00:52]} Ke7 {[%emt 0:00:28]} 57. Rfg5 {[%emt 0:00:21]} 1-0

[Event "Asian Amateur-ch Women 2022"]
[Site "Muscat"]
[Date "2022.10.02"]
[Round "3.8"]
[White "Al-Khelaifi, Aisha"]
[Black "alyazia Humaid alhasani"]
[Result "1-0"]
[ECO "C01"]
[WhiteElo "1678"]
[BlackElo "1203"]
[Annotator "NA RC COMBH"]
[PlyCount "59"]
[EventDate "2022.09.29"]
[EventType "swiss"]
[SourceTitle "playchess.com"]
[Source "ChessBase"]
[SourceQuality "1"]
[TimeControl "5400+30"]

1. e4 {[%emt 0:00:02]} e6 {[%emt 0:00:16]} 2. d4 {[%emt 0:00:24]} d5 {[%emt 0:00:17]} 3. Nc3 {[%emt 0:00:51]} Nf6 {[%emt 0:00:54]} 4. exd5 {[%emt 0:03:55]} exd5 {[%emt 0:05:54]} 5. Bd3 {[%emt 0:03:28]} Bb4 {[%emt 0:02:28]} 6. Nf3 {[%emt 0:04:00]} Bxc3+ {[%emt 0:02:33]} 7. bxc3 {[%emt 0:00:08]} Be6 {[%emt 0:02:07]} 8. O-O {[%emt 0:01:45]} Nbd7 {[%emt 0:03:48]} 9. Ba3 {[%emt 0:07:35]} b6 {[%emt 0:06:02]} 10. Bb5 {[%emt 0:04:37]} Rc8 {[%emt 0:02:41]} 11. Ne5 {[%emt 0:04:06]} Ne4 {[%emt 0:05:06]} 12. Qe1 {[%emt 0:06:31]} c5 {[%emt 0:06:37]} 13. Nxd7 {[%emt 0:03:54]} Bxd7 {[%emt 0:05:13]} 14. Ba6 {[%emt 0:03:53]} O-O {[%emt 0:03:40]} 15. Bxc8 {[%emt 0:02:46]} Bb5 {[%emt 0:01:00]} 16. Bf5 {[%emt 0:04:03]} Bxf1 {[%emt 0:06:37]} 17. Qxf1 {[%emt 0:01:19]} Nxc3 {[%emt 0:00:56]} 18. Qd3 {[%emt 0:01:09]} Ne4 {[%emt 0:01:35]} 19. dxc5 {[%emt 0:02:15]} Qf6 {[%emt 0:01:40]} 20. Re1 {[%emt 0:02:31]} Qxf5 {[%emt 0:16:50]} 21. f3 {[%emt 0:01:16]} Re8 {[%emt 0:05:08]} 22. fxe4 {[%emt 0:00:47]} dxe4 {[%emt 0:00:10]} 23. Qe3 {[%emt 0:00:31]} bxc5 {[%emt 0:02:26]} 24. Qxc5 {[%emt 0:02:07]} Qe6 {[%emt 0:01:55]} 25. c4 {[%emt 0:04:10]} Qd7 {[%emt 0:01:51]} 26. Qd5 {[%emt 0:02:01]} Qa4 {[%emt 0:01:37]} 27. Rf1 {[%emt 0:04:41]} h6 {[%emt 0:04:07]} 28. Qxf7+ {[%emt 0:00:25]} Kh8 {[%emt 0:00:22]} 29. Bb2 {[%emt 0:00:34]} Rg8 {[%emt 0:00:30]} 30. Qg6 {[%emt 0:29:46]} 1-0

[Event "Asian Amateur-ch Women 2022"]
[Site "Muscat"]
[Date "2022.10.02"]
[Round "3.9"]
[White "Al-Khulaifi, Ghada"]
[Black "Aditi Arun"]
[Result "0-1"]
[ECO "C29"]
[WhiteElo "1620"]
[BlackElo "1160"]
[Annotator "NA RC COMBH"]
[PlyCount "74"]
[EventDate "2022.09.29"]
[EventType "swiss"]
[SourceTitle "playchess.com"]
[Source "ChessBase"]
[SourceQuality "1"]
[TimeControl "5400+30"]

1. e4 {[%emt 0:00:06]} e5 {[%emt 0:00:06]} 2. Nc3 {[%emt 0:00:11]} Nf6 {[%emt 0:00:13]} 3. f4 {[%emt 0:00:30]} d5 {[%emt 0:00:24]} 4. fxe5 {[%emt 0:00:22]} Nxe4 {[%emt 0:00:19]} 5. Qf3 {[%emt 0:01:20]} Nxc3 {[%emt 0:01:03]} 6. bxc3 {[%emt 0:00:48]} c5 {[%emt 0:01:58]} 7. Bb5+ {[%emt 0:04:39]} Nc6 {[%emt 0:05:14]} 8. Qg3 {[%emt 0:05:25]} g6 {[%emt 0:03:32]} 9. Nf3 {[%emt 0:05:42]} Bg7 {[%emt 0:04:06]} 10. Ba3 {[%emt 0:01:49]} Qa5 {[%emt 0:01:54]} 11. Bxc6+ {[%emt 0:00:04]} bxc6 {[%emt 0:00:02]} 12. Bc1 {[%emt 0:00:45]} O-O {[%emt 0:03:18]} 13. O-O {[%emt 0:01:29]} Ba6 {[%emt 0:01:34]} 14. Re1 {[%emt 0:02:56]} Rfe8 {[%emt 0:06:49]} 15. Qf2 {[%emt 0:04:46]} h6 {[%emt 0:05:03]} 16. a4 {[%emt 0:01:46]} Rad8 {[%emt 0:11:32]} 17. Kh1 {[%emt 0:05:42]} Bb7 {[%emt 0:06:43]} 18. Ba3 {[%emt 0:06:48]} d4 {[%emt 0:01:49]} 19. cxd4 {[%emt 0:06:02]} cxd4 {[%emt 0:00:19]} 20. Bb2 {[%emt 0:03:26]} Bxe5 {[%emt 0:06:50]} 21. Nxe5 {[%emt 0:01:50]} Rxe5 {[%emt 0:01:19]} 22. Bxd4 {[%emt 0:02:45]} Rxe1+ {[%emt 0:01:06]} 23. Rxe1 {[%emt 0:00:03]} Qd5 {[%emt 0:00:04]} 24. Bc3 {[%emt 0:01:42]} c5 {[%emt 0:05:01]} 25. h3 {[%emt 0:01:13]} Bc6 {[%emt 0:02:38]} 26. Re5 {[%emt 0:00:42]} Qd7 {[%emt 0:00:40]} 27. Qh4 {[%emt 0:01:13]} h5 {[%emt 0:02:11]} 28. Rxc5 {[%emt 0:02:32]} Re8 {[%emt 0:02:15]} 29. Qg3 {[%emt 0:04:12]} h4 {[%emt 0:02:07]} 30. Qxh4 {[%emt 0:15:47]} Re1+ {[%emt 0:00:26]} 31. Kh2 {[%emt 0:00:26]} Qd6+ {[%emt 0:00:25]} 32. Re5 {[%emt 0:06:55]} Rxe5 {[%emt 0:00:32]} 33. Bxe5 {[%emt 0:01:46]} Qxe5+ {[%emt 0:00:14]} 34. Qg3 {[%emt 0:00:03]} Qxg3+ {[%emt 0:00:37]} 35. Kxg3 {[%emt 0:00:02]} Bxa4 {[%emt 0:00:12]} 36. c3 {[%emt 0:00:04]} Bb5 {[%emt 0:00:43]} 37. Kf4 {[%emt 0:00:16]} a5 {[%emt 0:00:19]} 0-1

[Event "Asian Amateur-ch Women 2022"]
[Site "Muscat"]
[Date "2022.10.02"]
[Round "4.1"]
[White "Abeysinghe, H M H Janandani"]
[Black "Rouda Essa, Alserkal"]
[Result "0-1"]
[ECO "C54"]
[WhiteElo "1546"]
[BlackElo "1893"]
[Annotator "NA RC COMBH"]
[PlyCount "70"]
[EventDate "2022.09.29"]
[EventType "swiss"]
[SourceTitle "playchess.com"]
[Source "ChessBase"]
[SourceQuality "1"]
[TimeControl "5400+30"]

1. e4 {[%emt 0:00:04]} e5 {[%emt 0:00:07]} 2. Nf3 {[%emt 0:00:12]} Nc6 {[%emt 0:00:07]} 3. Bc4 {[%emt 0:00:07]} Bc5 {[%emt 0:00:04]} 4. c3 {[%emt 0:00:09]} Nf6 {[%emt 0:00:04]} 5. d3 {[%emt 0:00:04]} a6 {[%emt 0:00:03]} 6. O-O {[%emt 0:00:27]} O-O {[%emt 0:00:04]} 7. Re1 {[%emt 0:00:25]} d6 {[%emt 0:00:30]} 8. h3 {[%emt 0:00:10]} h6 {[%emt 0:08:47]} 9. b4 {[%emt 0:05:08]} Ba7 {[%emt 0:00:33]} 10. a4 {[%emt 0:00:49]} Be6 {[%emt 0:02:52]} 11. Bxe6 {[%emt 0:01:47]} fxe6 {[%emt 0:00:02]} 12. Be3 {[%emt 0:00:10]} Qe8 {[%emt 0:06:04]} 13. Nbd2 {[%emt 0:03:41]} Nh5 {[%emt 0:02:23]} 14. g3 {[%emt 0:06:14]} Bxe3 {[%emt 0:13:53]} 15. Rxe3 {[%emt 0:03:15]} Qf7 {[%emt 0:02:37]} 16. Qf1 {[%emt 0:07:58]} Kh7 {[%emt 0:16:36]} 17. Nc4 {[%emt 0:23:28]} Qf6 {[%emt 0:07:36]} 18. b5 {[%emt 0:06:37]} Nd4 {[%emt 0:12:32]} 19. Nxd4 {[%emt 0:12:47]} exd4 {[%emt 0:00:32]} 20. e5 {[%emt 0:01:00]} Qf7 {[%emt 0:08:40]} 21. cxd4 {[%emt 0:01:50]} axb5 {[%emt 0:00:11]} 22. Nb2 {[%emt 0:01:44]} dxe5 {[%emt 0:04:34]} 23. dxe5 {[%emt 0:00:41]} g5 {[%emt 0:02:51]} 24. d4 {[%emt 0:05:20]} Ng7 {[%emt 0:04:21]} 25. g4 {[%emt 0:06:23]} Qf4 {[%emt 0:01:11]} 26. Qd3+ {[%emt 0:01:41]} Kg8 {[%emt 0:00:05]} 27. Re2 {[%emt 0:00:29]} bxa4 {[%emt 0:00:42]} 28. Rxa4 {[%emt 0:01:15]} Rxa4 {[%emt 0:01:49]} 29. Nxa4 {[%emt 0:00:05]} Qc1+ {[%emt 0:01:39]} 30. Kh2 {[%emt 0:00:48]} Ra8 {[%emt 0:01:46]} 31. Nc5 {[%emt 0:06:54]} Ra1 {[%emt 0:00:37]} 32. Kg3 {[%emt 0:00:41]} Qh1 {[%emt 0:01:24]} 33. f4 {[%emt 0:01:04]} Rg1+ {[%emt 0:00:19]} 34. Kf2 {[%emt 0:00:12]} Qh2+ {[%emt 0:00:24]} 35. Ke3 {[%emt 0:00:12]} Qxf4# {[%emt 0:00:10]} 0-1

[Event "Asian Amateur-ch Women 2022"]
[Site "Muscat"]
[Date "2022.10.02"]
[Round "4.2"]
[White "Nadernia, Niki"]
[Black "Shybi Binoj"]
[Result "1-0"]
[ECO "C77"]
[WhiteElo "1769"]
[BlackElo "1402"]
[Annotator "NA RC COMBH"]
[PlyCount "115"]
[EventDate "2022.09.29"]
[EventType "swiss"]
[SourceTitle "playchess.com"]
[Source "ChessBase"]
[SourceQuality "1"]
[TimeControl "5400+30"]

1. e4 {[%emt 0:00:14]} e5 {[%emt 0:00:15]} 2. Nf3 {[%emt 0:00:07]} Nc6 {[%emt 0:00:15]} 3. Bb5 {[%emt 0:00:07]} a6 {[%emt 0:00:10]} 4. Ba4 {[%emt 0:00:05]} d6 {[%emt 0:00:23]} 5. c3 {[%emt 0:00:06]} Nf6 {[%emt 0:00:48]} 6. d3 {[%emt 0:00:41]} Bg4 {[%emt 0:01:09]} 7. Nbd2 {[%emt 0:00:09]} g6 {[%emt 0:01:31]} 8. h3 {[%emt 0:01:10]} Bd7 {[%emt 0:00:42]} 9. Nf1 {[%emt 0:05:07]} h6 {[%emt 0:02:56]} 10. Bb3 {[%emt 0:03:01]} Bg7 {[%emt 0:02:05]} 11. Ng3 {[%emt 0:00:29]} O-O {[%emt 0:01:50]} 12. O-O {[%emt 0:00:53]} Qe7 {[%emt 0:01:28]} 13. Nh2 {[%emt 0:04:09]} g5 {[%emt 0:02:47]} 14. Re1 {[%emt 0:03:48]} Be6 {[%emt 0:03:44]} 15. Nhf1 {[%emt 0:04:24]} Qd8 {[%emt 0:06:40]} 16. Ne3 {[%emt 0:03:55]} d5 {[%emt 0:02:36]} 17. d4 {[%emt 0:05:14]} exd4 {[%emt 0:04:28]} 18. cxd4 {[%emt 0:00:47]} Qd7 {[%emt 0:03:51]} 19. e5 {[%emt 0:04:09]} Nh7 {[%emt 0:03:12]} 20. Bc2 {[%emt 0:04:35]} f5 {[%emt 0:01:56]} 21. Nh5 {[%emt 0:04:58]} Qf7 {[%emt 0:02:39]} 22. f4 {[%emt 0:02:59]} Ne7 {[%emt 0:02:41]} 23. Rf1 {[%emt 0:03:16]} Qg6 {[%emt 0:04:56]} 24. g4 {[%emt 0:00:49]} Rac8 {[%emt 0:02:16]} 25. fxg5 {[%emt 0:03:37]} Nxg5 {[%emt 0:03:13]} 26. Nf4 {[%emt 0:01:24]} Qf7 {[%emt 0:05:08]} 27. Nxe6 {[%emt 0:01:26]} Qxe6 {[%emt 0:01:48]} 28. gxf5 {[%emt 0:00:20]} Qb6 {[%emt 0:00:35]} 29. Qg4 {[%emt 0:06:57]} Nc6 {[%emt 0:02:06]} 30. Nxd5 {[%emt 0:08:56]} Qxd4+ {[%emt 0:04:07]} 31. Qxd4 {[%emt 0:28:08]} Nxd4 {[%emt 0:00:39]} 32. Ne7+ {[%emt 0:00:00]} Kf7 {[%emt 0:00:59]} 33. Bxg5 {[%emt 0:00:00]} hxg5 {[%emt 0:00:39]} 34. Nxc8 {[%emt 0:00:00]} Nxc2 {[%emt 0:01:11]} 35. e6+ {[%emt 0:00:00]} Kf6 {[%emt 0:01:18]} 36. Rac1 {[%emt 0:00:00]} Rxc8 {[%emt 0:00:19]} 37. Rxc2 {[%emt 0:00:00]} Bf8 {[%emt 0:00:23]} 38. Rf3 {[%emt 0:00:00]} Bd6 {[%emt 0:00:29]} 39. Kf2 {[%emt 0:00:00]} Rh8 {[%emt 0:00:49]} 40. Rc4 {[%emt 0:00:00]} b5 {[%emt 0:01:16]} 41. Rc6 {[%emt 0:00:00]} a5 {[%emt 0:00:43]} 42. Ra6 {[%emt 0:00:00]} a4 {[%emt 0:00:23]} 43. Ra5 {[%emt 0:00:00]} Rb8 {[%emt 0:01:16]} 44. Ke2 {[%emt 0:00:00]} Rb6 {[%emt 0:01:10]} 45. Kd3 {[%emt 0:00:00]} Bb4 {[%emt 0:01:13]} 46. Ra8 {[%emt 0:00:00]} Rd6+ {[%emt 0:01:31]} 47. Kc2 {[%emt 0:00:00]} Rd2+ {[%emt 0:00:25]} 48. Kc1 {[%emt 0:00:00]} Re2 {[%emt 0:01:01]} 49. Rh8 {[%emt 0:00:00]} Re1+ {[%emt 0:01:23]} 50. Kc2 {[%emt 0:00:00]} Re2+ {[%emt 0:00:10]} 51. Kd3 {[%emt 0:00:00]} Rxb2 {[%emt 0:03:30]} 52. Rh6+ {[%emt 0:00:00]} Ke5 {[%emt 0:01:55]} 53. e7 {[%emt 0:01:15]} Bxe7 {[%emt 0:01:32]} 54. Re6+ {[%emt 0:00:06]} Kd5 {[%emt 0:00:08]} 55. Rxe7 {[%emt 0:00:07]} Rxa2 {[%emt 0:00:21]} 56. f6 {[%emt 0:00:45]} c5 {[%emt 0:01:19]} 57. f7 {[%emt 0:01:09]} c4+ {[%emt 0:00:12]} 58. Ke3 {[%emt 0:00:05]} 1-0

[Event "Asian Amateur-ch Women 2022"]
[Site "Muscat"]
[Date "2022.10.02"]
[Round "4.3"]
[White "Amulya Guruprasad"]
[Black "Wijesuriya, G P Y"]
[Result "0-1"]
[ECO "D02"]
[WhiteElo "1278"]
[BlackElo "1564"]
[Annotator "NA RC COMBH"]
[PlyCount "71"]
[EventDate "2022.09.29"]
[EventType "swiss"]
[SourceTitle "playchess.com"]
[Source "ChessBase"]
[SourceQuality "1"]
[TimeControl "5400+30"]

1. d4 {[%emt 0:00:02]} d5 {[%emt 0:00:24]} 2. Nf3 {[%emt 0:00:14]} Nf6 {[%emt 0:00:16]} 3. Bf4 {[%emt 0:00:07]} c5 {[%emt 0:00:07]} 4. e3 {[%emt 0:00:29]} Nc6 {[%emt 0:00:19]} 5. c3 {[%emt 0:00:13]} Qb6 {[%emt 0:00:07]} 6. Qc2 {[%emt 0:00:07]} c4 {[%emt 0:00:18]} 7. Nbd2 {[%emt 0:01:16]} g6 {[%emt 0:00:11]} 8. Be2 {[%emt 0:02:03]} Bf5 {[%emt 0:00:08]} 9. Qc1 {[%emt 0:00:10]} Bg7 {[%emt 0:00:15]} 10. b3 {[%emt 0:12:25]} cxb3 {[%emt 0:00:20]} 11. axb3 {[%emt 0:00:02]} O-O {[%emt 0:00:20]} 12. Ne5 {[%emt 0:02:18]} Rac8 {[%emt 0:03:03]} 13. g4 {[%emt 0:05:04]} Be4 {[%emt 0:15:52]} 14. f3 {[%emt 0:00:38]} Nxg4 {[%emt 0:04:06]} 15. Nd7 {[%emt 0:00:51]} Qd8 {[%emt 0:01:10]} 16. Nxf8 {[%emt 0:00:08]} e5 {[%emt 0:00:22]} 17. Bg3 {[%emt 0:01:46]} Nxe3 {[%emt 0:00:59]} 18. fxe4 {[%emt 0:00:06]} exd4 {[%emt 0:00:43]} 19. Nxg6 {[%emt 0:01:18]} hxg6 {[%emt 0:00:11]} 20. Ra4 {[%emt 0:19:05]} dxc3 {[%emt 0:09:08]} 21. Nf1 {[%emt 0:00:14]} Nxf1 {[%emt 0:01:42]} 22. Rxf1 {[%emt 0:00:10]} d4 {[%emt 0:00:05]} 23. Bc4 {[%emt 0:01:40]} d3 {[%emt 0:01:41]} 24. Bxf7+ {[%emt 0:02:19]} Kh8 {[%emt 0:00:02]} 25. Qf4 {[%emt 0:05:26]} d2+ {[%emt 0:01:28]} 26. Kf2 {[%emt 0:00:54]} c2 {[%emt 0:01:17]} 27. e5 {[%emt 0:09:17]} d1=Q {[%emt 0:01:38]} 28. Qh4+ {[%emt 0:00:12]} Qh5 {[%emt 0:03:21]} 29. Bxg6 {[%emt 0:00:11]} Qhxh4 {[%emt 0:00:36]} 30. Bxh4 {[%emt 0:03:03]} Qd2+ {[%emt 0:00:51]} 31. Kg3 {[%emt 0:08:11]} c1=Q {[%emt 0:00:40]} 32. Rf6 {[%emt 0:01:25]} Qcc3+ {[%emt 0:00:46]} 33. Rf3 {[%emt 0:00:20]} Qxf3+ {[%emt 0:00:15]} 34. Kxf3 {[%emt 0:00:04]} Rf8+ {[%emt 0:00:07]} 35. Kg4 {[%emt 0:03:50]} Nxe5+ {[%emt 0:00:09]} 36. Kh3 {[%emt 0:00:27]} 0-1

[Event "Asian Amateur-ch Women 2022"]
[Site "Muscat"]
[Date "2022.10.02"]
[Round "4.5"]
[White "Al-Khelaifi, Salama"]
[Black "Amal Fadel S M Alshamsi"]
[Result "1-0"]
[ECO "D01"]
[WhiteElo "1798"]
[BlackElo "1404"]
[Annotator "NA RC COMBH"]
[PlyCount "67"]
[EventDate "2022.09.29"]
[EventType "swiss"]
[SourceTitle "playchess.com"]
[Source "ChessBase"]
[SourceQuality "1"]
[TimeControl "5400+30"]

1. d4 {[%emt 0:00:03]} Nf6 {[%emt 0:00:05]} 2. Nc3 {[%emt 0:00:08]} d5 {[%emt 0:00:10]} 3. Bg5 {[%emt 0:00:14]} Nbd7 {[%emt 0:00:14]} 4. Qd3 {[%emt 0:00:40]} h6 {[%emt 0:01:36]} 5. Bh4 {[%emt 0:00:57]} c5 {[%emt 0:00:50]} 6. f3 {[%emt 0:20:20]} c4 {[%emt 0:01:29]} 7. Qd2 {[%emt 0:00:24]} e6 {[%emt 0:12:21]} 8. a3 {[%emt 0:13:24]} a6 {[%emt 0:17:17]} 9. e4 {[%emt 0:06:15]} Nxe4 {[%emt 0:17:50]} 10. fxe4 {[%emt 0:02:31]} Qxh4+ {[%emt 0:02:49]} 11. g3 {[%emt 0:00:21]} Qe7 {[%emt 0:00:06]} 12. exd5 {[%emt 0:01:07]} exd5+ {[%emt 0:00:21]} 13. Nge2 {[%emt 0:00:09]} Nf6 {[%emt 0:02:26]} 14. O-O-O {[%emt 0:03:48]} Be6 {[%emt 0:04:59]} 15. Re1 {[%emt 0:03:00]} Qd6 {[%emt 0:23:17]} 16. Nf4 {[%emt 0:05:10]} Kd7 {[%emt 0:01:10]} 17. Nxe6 {[%emt 0:03:20]} fxe6 {[%emt 0:00:04]} 18. Bh3 {[%emt 0:37:39]} Re8 {[%emt 0:00:22]} 19. Re2 {[%emt 0:00:00]} g5 {[%emt 0:00:31]} 20. Rf1 {[%emt 0:00:00]} Bg7 {[%emt 0:00:35]} 21. Na4 {[%emt 0:00:00]} b6 {[%emt 0:06:08]} 22. Rfe1 {[%emt 0:00:00]} g4 {[%emt 0:00:07]} 23. Bg2 {[%emt 0:00:00]} a5 {[%emt 0:02:11]} 24. Nc3 {[%emt 0:00:00]} h5 {[%emt 0:00:35]} 25. Kb1 {[%emt 0:00:00]} Bh6 {[%emt 0:00:06]} 26. Qd1 {[%emt 0:00:00]} Qc6 {[%emt 0:00:48]} 27. Re5 {[%emt 0:00:00]} Re7 {[%emt 0:02:24]} 28. Nxd5 {[%emt 0:00:00]} Nxd5 {[%emt 0:02:15]} 29. Bxd5 {[%emt 0:00:00]} Qa4 {[%emt 0:00:56]} 30. Bxe6+ {[%emt 0:00:00]} Kd8 {[%emt 0:00:52]} 31. Bxc4 {[%emt 0:00:00]} Rc7 {[%emt 0:00:31]} 32. Bb5 {[%emt 0:00:00]} Qxc2+ {[%emt 0:00:22]} 33. Qxc2 {[%emt 0:00:00]} Rxc2 {[%emt 0:00:06]} 34. Kxc2 {[%emt 0:00:00]} 1-0

[Event "Asian Amateur-ch Women 2022"]
[Site "Muscat"]
[Date "2022.10.02"]
[Round "4.6"]
[White "Noor Fatima Rashid"]
[Black "Al-Khelaifi, Aisha"]
[Result "0-1"]
[ECO "D02"]
[WhiteElo "1343"]
[BlackElo "1678"]
[Annotator "NA RC COMBH"]
[PlyCount "50"]
[EventDate "2022.09.29"]
[EventType "swiss"]
[SourceTitle "playchess.com"]
[Source "ChessBase"]
[SourceQuality "1"]
[TimeControl "5400+30"]

1. d4 {[%emt 0:00:06]} d5 {[%emt 0:00:05]} 2. Nf3 {[%emt 0:00:06]} Nf6 {[%emt 0:00:19]} 3. g3 {[%emt 0:00:23]} c6 {[%emt 0:00:27]} 4. Bg2 {[%emt 0:00:18]} Bf5 {[%emt 0:00:44]} 5. O-O {[%emt 0:00:30]} Nbd7 {[%emt 0:01:08]} 6. c3 {[%emt 0:01:04]} e6 {[%emt 0:00:35]} 7. Nh4 {[%emt 0:00:55]} Bg4 {[%emt 0:02:50]} 8. Re1 {[%emt 0:01:34]} Bd6 {[%emt 0:04:12]} 9. Qc2 {[%emt 0:01:48]} O-O {[%emt 0:09:50]} 10. Nd2 {[%emt 0:03:54]} Re8 {[%emt 0:13:03]} 11. e4 {[%emt 0:07:04]} e5 {[%emt 0:07:22]} 12. dxe5 {[%emt 0:13:03]} Nxe5 {[%emt 0:07:20]} 13. b3 {[%emt 0:06:33]} Bc5 {[%emt 0:09:08]} 14. Rf1 {[%emt 0:12:39]} Be2 {[%emt 0:06:19]} 15. Re1 {[%emt 0:01:34]} Bd3 {[%emt 0:00:38]} 16. Qd1 {[%emt 0:02:54]} Bxf2+ {[%emt 0:05:36]} 17. Kh1 {[%emt 0:04:12]} Bxe1 {[%emt 0:02:12]} 18. Qxe1 {[%emt 0:00:41]} dxe4 {[%emt 0:02:22]} 19. Nxe4 {[%emt 0:04:10]} Bxe4 {[%emt 0:02:06]} 20. Bxe4 {[%emt 0:00:43]} Nxe4 {[%emt 0:01:17]} 21. Qxe4 {[%emt 0:00:23]} Qd1+ {[%emt 0:02:26]} 22. Kg2 {[%emt 0:00:44]} Nd3 {[%emt 0:01:47]} 23. Qc4 {[%emt 0:04:06]} Re2+ {[%emt 0:03:16]} 24. Kh3 {[%emt 0:00:57]} Qf1+ {[%emt 0:00:11]} 25. Kg4 {[%emt 0:00:23]} Ne5+ {[%emt 0:00:10]} 0-1